Cogmind - Beta 17 @@@ ROGUE MODE // 2026.06.24 @ 20:11:37 Player: beans Result: Destroyed by G-50 Soldier with Heavy Laser Performance ------------- Evolutions (4) 2000 Regions Visited (4) 800 Robots Destroyed (6) 30 Value Destroyed (290) 290 Prototype IDs (0) 0 Alien Tech Used (0) 0 Bonus (0) 0 TOTAL SCORE: 3120 Bonus ------- None Cogmind --------- Core Integrity 0/850 Matter 147/300 Energy 51/100 System Corruption 15% Temperature Cool (9) Movement Core (100) Ox1 Location -6/Factory Parts ------- > --- POWER (2) -------- (None) > --- PROPULSION (3) --- (None) > --- UTILITY (6) ------ Improved Cooling System Dynamic Insulation System > --- WEAPON (4) ------- (None) > --- INVENTORY (5) ---- Improved Medium Treads Improved Medium Treads Layered Medium Armor Plating CPS Tube (2) CPS Tube (2) Peak State ------------ > --- POWER ------------ Improved Deuterium Engine > --- PROPULSION ------- Light Treads Aluminum Leg > --- UTILITY ---------- Enhanced Optical Array Improved Core Shielding > --- WEAPON ----------- Gatling Laser Flak Gun Chainsword > --- INVENTORY -------- Arc Projector CPS Tube CPS Tube CPS Tube [Rating: 29] Favorites ----------- Power Light Ion Engine Engine Light Ion Engine Power Core Nuclear Core Propulsion Aluminum Leg Treads Light Treads Leg Aluminum Leg Utility Enhanced Optical Array Device Dynamic Insulation System Processor Enhanced Optical Array Protection Improved Core Shielding Weapon Small Laser Energy Gun Small Laser Energy Cannon Plasma Cannon Ballistic Gun Flak Gun Ballistic Cannon Magnetic Acceleration Cannon Special Weapon CPS Tube Slashing Weapon Chainsword Build | -11 -10 -10 -9 -6 ------- Run | Yrd Mat Sub Scr Fac Slots Evolved 8 | . . . . 8 Power 1 | . . . . 1 Propulsion 1 | . . . . 1 Utility 4 | . . . . 4 Weapon 2 | . . . . 2 Parts Attached 26 | 5 . . 5 16 Power 3 | 1 . . 1 1 Engine 2 | 1 . . . 1 Core 1 | . . . 1 . Reactor . | . . . . . Propulsion 3 | 2 . . . 1 Treads 1 | . . . . 1 Leg 2 | 2 . . . . Wheel . | . . . . . Hover . | . . . . . Flight . | . . . . . Utility 5 | . . . 2 3 Device 2 | . . . . 2 Storage . | . . . . . Processor 1 | . . . 1 . Hackware . | . . . . . Protection 2 | . . . 1 1 Artifact . | . . . . . Weapon 15 | 2 . . 2 11 Energy Gun 4 | 2 . . . 2 Energy Cannon 2 | . . . 2 . Ballistic Gun 6 | . . . . 6 Ballistic Cannon 1 | . . . . 1 Launcher . | . . . . . Special Weapon 1 | . . . . 1 Impact Weapon . | . . . . . Slashing Weapon 1 | . . . . 1 Piercing Weapon . | . . . . . Special Melee Weapon . | . . . . . Unidentified Prototypes . | . . . . . Corrupted Parts 2 | . . . . 2 System Corruption 12 | . . . . 12 Parts Lost 21 | . . . . 21 Power 2 | . . . . 2 Propulsion 3 | . . . . 3 Utility 3 | . . . . 3 Weapon 13 | . . . . 13 Highest Loss Streak 13 | . . . . 13 To Critical Strikes . | . . . . . Average Backups 3 | . 1 1 4 4 Power . | . . . . . Propulsion . | . 1 1 . . Utility . | . . . . . Weapon . | . . . . 1 Tool/Special . | . . . . . Unused Backups 8 | . . . 3 5 Power . | . . . . . Propulsion 3 | . . . 1 2 Utility 3 | . . . 2 1 Weapon . | . . . . . Tool/Special 2 | . . . . 2 Average Slot Usage (%) 71 | . 71 71 94 35 Engine 8 | . 14 14 9 1 Core 2 | . . . 4 2 Leg 22 | . 28 28 28 7 Processor 6 | . . . 11 4 Protection 6 | . . . 11 4 Energy Gun 13 | . 28 28 10 1 Energy Cannon 8 | . . . 17 4 Peak Build Rating 29 | 5 5 5 25 29 Average Rating 14 | 2 5 5 19 20 On Entrance 8 | . 5 5 5 25 Avg Prop Armor Cover (%) 8 | . . . . 8 Naked Turns 18 | . . . . 18 Heaviest Build 26 | 5 5 5 26 26 Greatest Support 20 | 20 20 20 20 20 Greatest Overweight (x) 3 | . . . 1 3 Average Overweight (x) . | . . . . . Largest Inventory Capacity 5 | 5 5 5 5 5 Average Capacity 5 | 5 5 5 5 5 Most Carried 5 | 5 1 1 5 5 Average Carried 3 | . 1 1 4 4 Final Capacity 5 | 5 5 5 5 5 Final Carried 5 | 1 1 1 5 5 Class Distribution -------------------- 100% | Mutant Dominant Class ---------------- Mutant | -10/Materials Mutant | -10/Subcaves Mutant | -9/Scraptown Mutant | -6/Factory Resources | -11 -10 -10 -9 -6 ----------- Run | Yrd Mat Sub Scr Fac Matter Collected 404 | 250 . . 50 104 Remotely . | . . . . . Salvage Created 306 | 49 . . . 257 Parts 25 | 2 . . . 23 Haulers Intercepted . | . . . . . Recyclers Shooed 1 | . . . . 1 Parts Field Recycled . | . . . . . Retrieved Matter . | . . . . . Parts Self-Destructed 5 | . . 5 . . Prevented . | . . . . . Parts Restored . | . . . . . Kills | -11 -10 -10 -9 -6 ------- Run | Yrd Mat Sub Scr Fac Combat Hostiles Destroyed 5 | 1 . . . 4 Melee 1 | . . . . 1 Guns 3 | 1 . . . 2 Classes Destroyed 6 | 1 . . . 5 Worker 1 | . . . . 1 Grunt 1 | 1 . . . . Sentry 1 | . . . . 1 Hunter 1 | . . . . 1 Programmer 1 | . . . . 1 Behemoth 1 | . . . . 1 Best Kill Streak 2 | 1 . . . 2 Combat Bots Only 1 | 1 . . . 1 Max Kills in Single Turn 1 | 1 . . . 1 Gunslinging . | . . . . . Exploded . | . . . . . Melee 1 | . . . . 1 Uniques/NPCs Destroyed . | . . . . . Combat | -11 -10 -10 -9 -6 -------- Run | Yrd Mat Sub Scr Fac Hostile Shots Fired 193 | 2 . . . 191 Missed 57 | 1 . . . 56 Hits 136 | 1 . . . 135 Projectile 136 | 1 . . . 135 Critical Strikes 1 | . . . . 1 Damage Taken 2512 | 12 . . . 2500 Core 858 | . . . . 858 Absorbed by Shields . | . . . . . Redirected to Shielding 43 | . . . . 43 Ignored by Resistances 36 | . . . . 36 Core Remaining (%) 100 | 100 . . 100 . Volleys Fired 38 | 2 . . . 36 Largest 3 | 2 . . . 3 Hottest 170 | 80 . . . 170 Shots Fired 60 | 4 . . . 56 Gun 39 | 4 . . . 35 Cannon 20 | . . . . 20 Launcher . | . . . . . Special 1 | . . . . 1 Kinetic 36 | . . . . 36 Thermal 22 | 4 . . . 18 Explosive . | . . . . . Electromagnetic 1 | . . . . 1 Robot Hit Streak 9 | 2 . . . 9 Robot Miss Streak 4 | 2 . . . 4 Penetration Max 1 | . . . . 1 Secondary Targets . | . . . . . Shots Hit Robots 51 | 2 . . . 49 Core Hits 22 | 2 . . . 20 Critical Kills 1 | . . . . 1 Critical Parts Destroyed . | . . . . . Critical Strikes 3 | . . . . 3 Meltdown 1 | . . . . 1 Sever 2 | . . . . 2 Melee Attacks 6 | . . . . 6 Impact . | . . . . . Slashing 6 | . . . . 6 Piercing . | . . . . . Sneak Attacks . | . . . . . Combat Hostiles . | . . . . . Follow-up Attacks . | . . . . . Damage Inflicted 1381 | 21 . . . 1360 Guns 739 | 21 . . . 718 Cannons 424 | . . . . 424 Explosions . | . . . . . Melee 212 | . . . . 212 Ramming 6 | . . . . 6 Kinetic 732 | . . . . 732 Thermal 425 | 21 . . . 404 Explosive . | . . . . . Electromagnetic 6 | . . . . 6 Impact . | . . . . . Slashing 212 | . . . . 212 Piercing . | . . . . . Highest Corruption 15 | . . . . 15 Average Corruption 6 | . . . . 6 Corruption Purged . | . . . . . Corruption Blocked . | . . . . . Effects 4 | . . . . 4 Matter Fused 1 | . . . . 1 Heat Flow Errors 2 | . . . . 2 Weapon Failures 1 | . . . . 1 Overload Shots . | . . . . . Overflow Damage 3 | . . . . 3 Projectiles 3 | . . . . 3 Explosions . | . . . . . Melee . | . . . . . Knockbacks 3 | . . . . 3 Impact . | . . . . . Kinetic 3 | . . . . 3 Secondary . | . . . . . Self-Inflicted Damage 3 | . . . . 3 Shots . | . . . . . Rammed 1 | . . . . 1 Targets Rammed 1 | . . . . 1 Kicked . | . . . . . Crushed . | . . . . . Highest Temperature 234 | 18 . . . 234 Average Temperature 61 | 12 . . . 66 Received Heat Transfer 531 | 6 . . . 525 Siege Activations . | . . . . . Martial Activations . | . . . . . Shielding Activations . | . . . . . Robots Disrupted . | . . . . . Combat Hostiles . | . . . . . Robots Corrupted . | . . . . . Combat Hostiles . | . . . . . Parts Fried . | . . . . . Impact Corruptions . | . . . . . Robots Melted 1 | . . . . 1 Combat Hostiles 1 | . . . . 1 Parts Melted 3 | . . . . 3 Heat Transferred 825 | 50 . . . 775 Parts Sabotaged . | . . . . . Parts Stolen . | . . . . . Parts Stripped . | . . . . . Power Chain Reactions . | . . . . . Alert | -11 -10 -10 -9 -6 ------- Run | Yrd Mat Sub Scr Fac Maximum Alert Level . | . . . . . Low Security (%) 100 | 100 100 . . 100 Level 1 . | . . . . . Level 2 . | . . . . . Level 3 . | . . . . . Level 4 . | . . . . . Level 5 . | . . . . . High Security . | . . . . . Max Security . | . . . . . Peak Influence 35 | 20 6 . . 35 Initial 6 | . 6 . . . Average 4 | 3 1 . . 5 Influence Increases 148 | 20 . . . 128 Destroy 0b10 Robot/C 100 | 20 . . . 80 Destroy 0b10 Robot/NC 5 | . . . . 5 Destroy Leader 40 | . . . . 40 Destroy Structure 3 | . . . . 3 Influence Decreases 148 | 10 10 . . 128 Entered New Map 4 | . 4 . . . Time Decay 92 | 10 6 . . 76 Lost Part 52 | . . . . 52 Squads Dispatched 2 | . . . . 2 Investigation . | . . . . . Extermination . | . . . . . Reinforcement 1 | . . . . 1 Assault . | . . . . . Garrison 1 | . . . . 1 Intercept . | . . . . . Searches Triggered . | . . . . . Construction Impeded . | . . . . . Haulers Reinforced . | . . . . . Active Scanning Responses . | . . . . . Cargo Convoy Interrupts . | . . . . . Stealth | -11 -10 -10 -9 -6 --------- Run | Yrd Mat Sub Scr Fac Distress Signals . | . . . . . Communications Jammed . | . . . . . Distress Signals . | . . . . . Times Spotted 9 | 1 1 . . 7 Peak Tracking Total 2 | 1 1 . . 2 Tactical Retreats . | . . . . . Traps | -11 -10 -10 -9 -6 ------- Run | Yrd Mat Sub Scr Fac Traps Triggered 1 | . . . . 1 Indirectly . | . . . . . Trap Hack Attempts . | . . . . . Triggered . | . . . . . Disarmed . | . . . . . Reprogrammed . | . . . . . Reused . | . . . . . Traps Extracted . | . . . . . Installed . | . . . . . Triggered . | . . . . . Machines | -11 -10 -10 -9 -6 ---------- Run | Yrd Mat Sub Scr Fac Machines Disabled . | . . . . . Max in Single Turn . | . . . . . Machines Repaired . | . . . . . Machines Dismantled . | . . . . . Machines Sabotaged . | . . . . . Overloaded Fab Kills . | . . . . . Hacking | -11 -10 -10 -9 -6 --------- Run | Yrd Mat Sub Scr Fac Machines Accessed 1 | . . . 1 . Terminals . | . . . . . Fabricators . | . . . . . Repair Stations . | . . . . . Recycling Units . | . . . . . Scanalyzers . | . . . . . Garrison Access . | . . . . . Total Hacks 2 | . . . 2 . Successful 2 | . . . 2 . Failed . | . . . . . Catastrophic . | . . . . . Database Lockouts . | . . . . . Manual 6 | . 6 . . . Terminals . | . . . . . Fabricators . | . . . . . Repair Stations . | . . . . . Recycling Units . | . . . . . Scanalyzers . | . . . . . Garrison Access . | . . . . . Terminal Hacks 2 | . . . 2 . Record 2 | . . . 2 . Fabricator Hacks . | . . . . . Repair Station Hacks . | . . . . . Recycling Unit Hacks . | . . . . . Scanalyzer . | . . . . . Garrison Access Hacks . | . . . . . Unauthorized Hacks . | . . . . . Terminals . | . . . . . Fabricators . | . . . . . Repair Stations . | . . . . . Recycling Units . | . . . . . Scanalyzers . | . . . . . Garrison Access . | . . . . . Data Cores Recovered . | . . . . . Used . | . . . . . Hacking Detections . | . . . . . Full Trace Events . | . . . . . Feedback Events . | . . . . . Feedback Blocked . | . . . . . Robot Schematics Acquired . | . . . . . Robots Built . | . . . . . Authchips . | . . . . . Time . | . . . . . Total Robot Build Rating . | . . . . . Part Schematics Acquired . | . . . . . Parts Built . | . . . . . Authchips . | . . . . . Time . | . . . . . Total Part Build Rating . | . . . . . Part Studies Acquired . | . . . . . Parts Repaired . | . . . . . Time . | . . . . . Parts Recycled . | . . . . . Recycled Matter . | . . . . . Retrieved Matter . | . . . . . Retrieved Components . | . . . . . Parts Scanalyzed . | . . . . . Part Schematics Acquired . | . . . . . Parts Damaged . | . . . . . Bothacking | -11 -10 -10 -9 -6 ------------ Run | Yrd Mat Sub Scr Fac Used RIF Installer . | . . . . . Robots Hacked . | . . . . . Non-combat . | . . . . . Combat . | . . . . . Robot Hacks Applied . | . . . . . Relay Couplers Released . | . . . . . Fabnet Peak Effective % . | . . . . . Robots Rewired . | . . . . . Allies Hacked . | . . . . . Hacks Repelled . | . . . . . Allies | -11 -10 -10 -9 -6 -------- Run | Yrd Mat Sub Scr Fac Total Allies . | . . . . . Largest Group . | . . . . . Highest-Rated Group . | . . . . . Highest-Rated Ally . | . . . . . Total Orders . | . . . . . Ally Attacks . | . . . . . Total Damage . | . . . . . Kills . | . . . . . Allies Corrupted . | . . . . . Allies Melted . | . . . . . Intel | -11 -10 -10 -9 -6 ------- Run | Yrd Mat Sub Scr Fac Active Infowar (turns) 929 | . . . 584 345 Optics 929 | . . . 584 345 Robot Analysis Total . | . . . . . Derelict Logs Recovered . | . . . . . Drone Launches . | . . . . . Drone Recoveries . | . . . . . Exploration | -11 -10 -10 -9 -6 ------------- Run | Yrd Mat Sub Scr Fac Turns Passed 1755 | 83 99 407 711 455 Spaces Moved 1042 | 87 52 265 443 195 Core 114 | 58 . . . 56 Treads 33 | . . . . 33 Legs 895 | 29 52 265 443 106 Wheels . | . . . . . Hover . | . . . . . Flight . | . . . . . Fastest Speed 50 | 50 120 120 120 50 Average Speed 139 | 73 120 120 156 159 Slowest Speed 260 | 120 120 120 190 260 Overloaded Moves . | . . . . . Propulsion Burnouts . | . . . . . Robots Hopped . | . . . . . Potential Cave-ins . | . . . . . Cave-ins Triggered . | . . . . . Exploration Rate (%) 17 | 6 12 22 42 4 Regions Visited 4 Branch Regions 2 Pre-discovered Areas . | . . . . . Known Exits Taken . | . . . . . Unknown Exits Taken 4 | 1 1 1 1 . Scrap Searched 6 | . . . 6 . Spaces Dug . | . . . . . Terrain Destroyed 4 | . . . . 4 Melee . | . . . . . Projectile 4 | . . . . 4 AOE . | . . . . . Terrain Rammed . | . . . . . Walls Destroyed . | . . . . . Machines Disabled . | . . . . . Actions | -11 -10 -10 -9 -6 --------- Run | Yrd Mat Sub Scr Fac Total 1276 | 102 88 354 463 269 Wait 134 | 3 37 90 . 4 Move 1038 | 86 51 264 442 195 Hop . | . . . . . Pick Up 25 | 6 . . 10 9 Fast Attach 9 | . . . 2 7 Attach 17 | 5 . . 2 10 Detach 1 | . . . . 1 Swap 1 | . . . 1 . Drop 6 | . . . 6 . Fire 38 | 2 . . . 36 Melee 6 | . . . . 6 Ram 1 | . . . . 1 Kick . | . . . . . Crush . | . . . . . Escape Stasis . | . . . . . Rewire . | . . . . . Trap . | . . . . . Miscellaneous . | . . . . . Route ------- -11/Scrapyard -10/Materials -10/Subcaves -9/Scraptown -6/Factory History --------- Turn | Location | Event 2 | -11/Scrapyard | Met Revision 17 57 | -11/Scrapyard | Discovered new exit (range 8) 84 | -11/Scrapyard | Entered Materials 85 | -10/Materials | Met a group of wandering Federalists 125 | -10/Materials | Discovered new exit (range 9) 183 | -10/Materials | Entered Subcaves 184 | -10/Subcaves | Continued accompanying wandering Federalists (6) 184 | -10/Subcaves | Approached by a straggling Scientist 255 | -10/Subcaves | Shifting Twisted Machinery released Spk. Treads 313 | -10/Subcaves | Build established: Mutant 344 | -10/Subcaves | A swath of the cavern ceiling suddenly collapsed 426 | -10/Subcaves | Wandering Federalist uncovered a shortcut to Scraptown 590 | -10/Subcaves | Entered Scraptown 900 | -9/Scraptown | Heard Great Nut preacher, LISTEN AND RECITE! 957 | -9/Scraptown | Visited Cyclists 1023 | -9/Scraptown | Visited Bundlers 1147 | -9/Scraptown | Visited Junk Repository 1209 | -9/Scraptown | Visited Science Testing Area 1287 | -9/Scraptown | Discovered new exit (range 7) 1301 | -9/Scraptown | Entered Factory 1301 | -6/Factory | Evolved 8 slots: Power x1, Propulsion x1, Utility x4, Weapon x2 1351 | -6/Factory | Spotted B-75 Beast 1523 | -6/Factory | Lost 4 parts (1p1n2w) 1605 | -6/Factory | Attached CPS modules to B-75 Beast 1640 | -6/Factory | Core integrity fell below 50% 1689 | -6/Factory | Destroyed B-75 Beast 1698 | -6/Factory | Garrison activated, responded to threat 1710 | -6/Factory | Lost 13 parts (1p2n2u8w) 1718 | -6/Factory | Core integrity fell below 20% 1721 | -6/Factory | System corruption reached 10% 1756 | -6/Factory | Destroyed by G-50 Soldier with Heavy Laser Last Messages --------------- jammed. K-01 Serf collects debris. R-10 Processor collects Wheel. K-01 Serf collects debris. G-50 Soldier knocked back. K-01 Serf collects debris. M-28 Smith repairs R-10 Processor. K-01 Serf collects debris. G-50 Soldier knocked back. System corrupted: Matter fused (-10). M-28 Smith repairs K-01 Serf Wheel. R-10 Processor collects Corrupted Coolant Injector. K-01 Serf collects debris. R-10 Processor knocked back. K-01 Serf collects debris. Med. Reflective Plating destroyed. K-01 Serf collects debris. Magnetic Acceleration Cannon destroyed. K-01 Serf collects debris. Map ----- +----------------------------------------------------+ | ?????????????????????????????????????????????????? | | ?????????????????????????????????????????????????? | | ?????????????????????????????????????????????????? | | ???????????????????????????????????????? #?????? | | ???????????????????????????????????????? #?????? | | ??????????????????????????????????????? #?????? | | ??????????????????????????????????????" #?????? | | ?????????????????????????????????????? #?????? | | ??????????????????????????????????????" ] #?????? | | ??????????????????????? ?????????????? #?????? | | ?????????????????????? ? ?????????????" #?????? | | ?????????????????????? ????????????? ??????? | | ????????????????????#? ?????????####"""####????? | | ????????????????????# ???????##"""""""" #????? | | ????????????????????# ???????# " #???## | | ????????????????????# ???????# % " #???# | | ????????????????????# ########!! " ##??# | | ????????????????????# "! % #??# | | ????????????????????# "! #??# | | ????????????????????# ; k #??# | | ????????????????????# """ """ ; ##??# | | ????????????????????# """ """ #???# | | ????????????????????# """ %"%*] " #???# | | ?????????########+### ;;k;;""###### | | ????????? k ^k | | ???????? ]@ *[ g % | | ???????? ![[% % % | | ???????? ![[ % g | | ???????? [[ k | | ???????????######+######## ;;;#######+######+#### | | ?????????????????????????# ####?# # | | ?????????????????????????####????# """" ! # " [ | | ?????????????????????????????????# """" # "" | | ?????????????????????????????????# """" # G | | ?????????????????????????????????# """" # "" " | | ?????????????????????????????????# """" # " " | | ?????????????????????????????????# """" !+ " | | ?????????????????????????????????# # | | ?????????????????????????????????########### | | ??????????????????????????????????????????## | | ??????????????????????????????????????????## """ " | | ???????????????????????????????????????????#%""" " | | ???????????????????????????????????????????# """ " | | ???????????????????????????????????????????# "" | | ???????????????????????????????????????????# "" | | ???????????????????????????????????????????# | | ?????????????????????????????????????????###+##### | | ?????????????????????????????????????????# ### | | ??????????????????????????????????######## | | ??????????????????????????????????# T | +----------------------------------------------------+ Best States ------------- Heat Dissipation 64 Energy Generation 16 Energy Capacity 290 Matter Stores 300 Matter Capacity 300 Sight Range 22 Terrain Scan Density 10 EM Shielding 2 Armor Coverage 225 Resistance: TH 15 Core Shielding 30 Evasion (%) 55 Recoil Reduction 1 Item Schematics ----------------- None Robot Schematics ------------------ None Fabricated ------------ Nothing Repaired ---------- Nothing Studied --------- None Alien Tech Used ----------------- None Achievements -------------- None Challenges ------------ None Game ------ Seed DataCountertargetingDirector Manual? 0 Play Time 00:13:04 Cumulative 351.6 hours Start 2026.06.24 @ 19:49:05 End 2026.06.24 @ 20:11:37 Sessions 1 Manual Loads 0 Difficulty Rogue Special Mode None Game No. 870 Rogue 868 Adventurer 2 Explorer 0 Win Type - Total 1 Types 1/0/0/0/0/0/0/0/0/0 Lore% 50 Gallery% 66 Achievement% 52 Wizard Run 0 Options --------- Layout 2 ASCII 0 Keyboard 0 Movement Mouse Keybinds 0 Fullscreen 1 Font 24/Smallcaps Map View 50x44 Zoom Use 0% Tactical HUD 0 Map Filters NONE Filters NONE Steam 1 RUN: b17148f1-c581-40b8-8fd6-f60a1419db81